bitfinex/quotes_ETHUSD_20260119
["timestamp","ask_amount","ask_price","bid_price","bid_amount"]
[1768828892941,1.59450372,3215.9,3215.2,1.46164603]
[1768828896558,4.70407233,3215.9,3215.2,1.46164603]
[1768828897068,4.70407233,3215.9,3215.5,0.002]
[1768828897573,5.48541517,3215.9,3215.5,0.002]
[1768828898146,3.89191145,3215.9,3215.5,0.002]
[1768828898377,1.59350372,3215.8,3215.5,0.002]
[1768828899156,0.001,3215.9,3215.5,0.002]
[1768828899353,3.10999071,3216.3,3215.7,1.46164603]
[1768828899551,1.59430524,3216.3,3215.7,1.46164603]
[1768828899775,4.70348513,3216.3,3215.7,1.46164603]
[1768828899971,1.52914638,3216.2,3215.6,0.512]
[1768828900750,3.10935605,3216.1,3215.6,0.512]
[1768828901050,1.52914638,3216.0,3215.6,0.512]
[1768828902142,1.52914638,3216.0,3215.5,0.002]
[1768828902143,1.52914638,3215.9,3215.5,0.002]
[1768828902365,1.52914638,3215.9,3215.1,0.002]
[1768828902954,1.52914638,3215.7,3215.1,0.002]
[1768828904384,1.52914638,3215.7,3215.1,1.55148504]
[1768828905162,3.10983953,3215.6,3215.1,1.55148504]
[1768828905473,4.63898591,3215.6,3215.1,1.55148504]
[1768828907286,5.41386266,3215.6,3215.1,1.55148504]
[1768828907488,1.52914638,3215.5,3215.1,0.002]
[1768828907871,3.88471628,3215.6,3215.1,0.002]
[1768828908076,0.77487675,3215.6,3215.1,1.55148504]
[1768828908278,4.63891578,3215.7,3215.1,1.55148504]
[1768828909163,1.52914638,3215.9,3215.3,1.54948504]
[1768828909368,0.00080152,3216.3,3215.3,1.54948504]
[1768828909369,1.52914638,3216.1,3215.3,1.54948504]
[1768828909572,0.00080152,3216.3,3215.3,1.54948504]
[1768828909573,1.5299479,3216.3,3215.4,1.54948504]
[1768828909764,1.5299479,3216.3,3215.6,1.54948504]
[1768828909765,0.00080152,3216.3,3215.6,1.54948504]
[1768828911061,3.10859909,3216.9,3215.5,0.51715874]
[1768828911062,4.63775534,3216.9,3216.2,0.00080056]
[1768828912392,1.52914638,3216.8,3216.2,0.00080056]
[1768828912983,0.0008012,3217.0,3216.3,1.61762336]
[1768828914092,0.0008012,3217.0,3216.4,1.61762336]
[1768828915281,0.0008012,3217.0,3216.3,0.512]
[1768828915282,1.61375223,3217.0,3216.3,0.512]
[1768828915797,1.61295103,3216.8,3216.3,0.512]
[1768828918299,7.83050317,3216.7,3216.3,0.512]
[1768828918668,1.61295103,3216.6,3216.3,0.512]
[1768828919576,1.61295103,3216.5,3216.2,0.00080056]
[1768828920599,1.61295103,3216.4,3216.2,0.00080056]
[1768828920803,1.61295103,3216.4,3215.9,0.0008016]
[1768828920989,1.61295103,3216.2,3215.6,0.512]
[1768828922467,1.61295103,3216.0,3215.6,0.512]
[1768828922804,0.47223071,3215.9,3215.3,1.61762336]
[1768828922983,1.61295103,3216.0,3215.3,1.61762336]
[1768828923202,3.10935605,3216.1,3215.5,1.61762336]
[1768828923783,7.83166313,3216.1,3215.5,1.61762336]
[1768828924104,1.61295103,3216.0,3215.3,1.61762336]
[1768828924603,3.10954942,3215.9,3215.4,1.61962336]
[1768828925731,2.39613668,3215.9,3215.4,0.002]
[1768828926078,0.78318565,3215.9,3215.4,1.61962336]
[1768828926594,3.10939569,3216.1,3215.4,1.61962336]
[1768828927925,3.10999992,3216.3,3215.5,1.61762336]
[1768828928100,0.0008016,3216.3,3215.5,1.61762336]
[1768828928421,0.00180056,3216.6,3216.0,1.61762336]
[1768828931194,0.00180056,3216.6,3216.2,1.61762336]
[1768828933094,3.10860899,3216.9,3216.3,1.61762336]
[1768828933095,1.61295103,3216.9,3216.3,1.61762336]
[1768828933295,1.61295103,3216.9,3216.4,0.512]
[1768828934022,4.72157176,3216.9,3216.4,0.512]
[1768828934202,7.83019249,3216.9,3216.4,0.512]
[1768828934403,4.72157176,3216.9,3216.4,0.512]
[1768828934621,4.72157176,3216.9,3216.3,1.61762336]
[1768828936149,0.0008012,3217.0,3216.4,1.61762336]
[1768828937301,1.61295103,3216.9,3216.2,0.00080064]
[1768828937548,1.61295103,3216.5,3215.9,0.00080168]
[1768828939819,4.72200427,3216.5,3215.9,0.00080168]
[1768828940552,7.83105751,3216.5,3215.9,0.00080168]
[1768828941955,4.72200427,3216.5,3215.9,1.61842504]
[1768828942154,1.61295103,3216.4,3215.9,0.00080168]
[1768828942470,0.78318582,3216.4,3215.9,0.00080168]
[1768828942630,0.78318582,3216.4,3215.4,0.002]
[1768828942631,1.61375271,3216.3,3215.4,0.514]
[1768828942949,1.61375271,3216.3,3215.4,2.20567336]
[1768828943955,6.21851874,3216.2,3215.4,2.20567336]
[1768828944158,1.57939056,3216.1,3215.4,2.20567336]
[1768828944317,1.57939056,3216.0,3215.4,0.002]
[1768828944955,7.38540142,3216.0,3215.4,0.002]
[1768828945159,0.7798711,3216.1,3215.4,1.69367336]
[1768828945325,3.10925937,3216.2,3215.4,1.69367336]
[1768828945520,6.21851874,3216.2,3215.4,1.69367336]
[1768828946254,0.001,3216.1,3215.4,1.69367336]
[1768828946450,5.80701086,3216.1,3215.4,1.69367336]
[1768828946643,1.57939056,3216.0,3215.4,0.002]
[1768828947754,1.57939056,3216.0,3215.4,1.69367336]
[1768828948838,4.68887827,3216.0,3215.4,1.69367336]
[1768828949160,3.10948771,3216.0,3215.4,1.69367336]
[1768828949328,5.80701086,3216.1,3215.5,1.69167336]
[1768828949528,8.91638116,3216.1,3215.5,1.69167336]
[1768828950245,10.49577172,3216.1,3215.5,1.69167336]
[1768828950424,13.60514202,3216.1,3215.5,1.69167336]
[1768828951041,10.49577172,3216.1,3215.5,1.69167336]
[1768828951539,8.91638116,3216.1,3215.5,1.69167336]
[1768828951737,12.02575146,3216.1,3215.5,1.69167336]
[1768828951941,13.60514202,3216.1,3215.5,1.69167336]
[1768828952861,5.80601086,3215.8,3215.4,1.69367336]
[1768828953163,8.91570536,3215.8,3215.2,2.20367336]
[1768828954164,5.80601086,3215.8,3215.2,2.20367336]
[1768828954357,5.80601086,3215.8,3215.3,1.69167336]
[1768828955171,3.10947516,3216.0,3215.3,1.69167336]
[1768828955469,4.68886572,3216.0,3215.3,1.69167336]
[1768828955770,1.57939056,3215.9,3215.3,1.69167336]
[1768828956369,5.80601086,3215.8,3215.1,1.69367336]
[1768828956551,5.80601086,3215.8,3215.1,0.512]
[1768828956552,7.38540142,3215.5,3215.1,0.512]
[1768828956749,1.57939056,3215.5,3215.1,0.512]
[1768828957675,1.57939056,3215.5,3215.0,0.002]
[1768828957676,1.57939056,3215.4,3215.0,0.002]
[1768828957973,1.57939056,3215.4,3215.1,0.002]
[1768828958581,1.57939056,3215.4,3214.7,3.11269635]
[1768828958748,1.57939056,3215.4,3213.6,0.16213797]
[1768828958749,1.57939056,3214.7,3213.6,0.16213797]
[1768828958942,5.80601086,3215.2,3213.6,0.16213797]
[1768828958943,1.57939056,3214.5,3213.6,0.16213797]
[1768828959277,1.57939056,3214.5,3212.8,0.00080016]
[1768828959278,1.57939056,3214.5,3211.5,0.00080016]
[1768828959279,0.00080016,3213.2,3211.5,0.00080016]
[1768828959480,0.00080016,3213.2,3212.1,0.16216648]
[1768828959481,1.57939056,3213.1,3212.1,0.16216648]
[1768828959645,1.65792798,3212.9,3212.1,0.16216648]
[1768828959844,1.65792798,3212.9,3211.9,1.02965401]
[1768828960410,0.00080016,3213.2,3212.3,1.02293248]
[1768828960540,0.00080016,3213.2,3212.1,6.22642973]
[1768828960541,0.00080016,3213.2,3212.6,1.02293248]
[1768828961240,0.0008016,3213.9,3213.2,1.01961621]
[1768828961680,0.0008016,3213.9,3213.3,4.13087992]
[1768828961865,0.0008016,3213.9,3213.4,0.41316817]
[1768828962041,0.00080192,3214.2,3213.5,1.00244959]
[1768828962248,3.11205092,3214.2,3213.5,1.00244967]
[1768828962549,0.00080192,3214.2,3213.5,1.00244967]
[1768828962982,1.65712702,3214.1,3213.5,0.00080168]
[1768828963472,0.00080192,3214.2,3213.5,0.00080168]
[1768828963846,0.00080192,3214.2,3213.5,0.45194498]
[1768828964049,1.65712702,3214.6,3213.6,0.96948]
[1768828964372,1.65712702,3214.8,3213.9,0.96948]
[1768828964551,4.7675286,3215.1,3213.9,0.96948]
[1768828964754,3.62325812,3215.2,3213.9,0.96948]
[1768828964959,0.36232581,3215.1,3213.9,0.96948]
[1768828965154,3.11015051,3215.3,3213.9,0.96948]
[1768828965477,0.0008012,3217.3,3213.9,0.96948]
[1768828965478,4.76689982,3215.7,3213.9,0.96948]
[1768828965987,4.76689982,3215.7,3214.1,0.95367258]
[1768828966297,1.65712702,3215.6,3214.1,0.95367258]
[1768828966461,1.65712702,3215.6,3213.9,3.1114219]
[1768828966651,9.3293184,3215.7,3213.9,3.56764896]
[1768828966652,1.65712702,3215.4,3213.9,3.56764896]
[1768828966987,1.65712702,3215.2,3213.9,3.56764896]
[1768828967150,1.65712702,3215.2,3213.9,0.45622706]
[1768828967347,1.65712702,3215.2,3213.8,0.512802]
[1768828967581,1.65712702,3215.2,3213.9,3.11147854]
[1768828967953,1.65712702,3215.0,3213.9,3.11147854]
[1768828969684,3.62325911,3215.2,3214.2,0.002]
[1768828969892,0.001,3215.2,3214.2,4.00536917]
[1768828970098,0.001,3215.2,3214.3,0.40053692]
[1768828970392,1.65812702,3215.2,3214.3,0.40053692]
[1768828970890,1.65812702,3215.2,3214.2,0.002]
[1768828972291,1.65712702,3215.0,3214.2,0.002]
[1768828972856,0.001,3215.2,3214.2,0.002]
[1768828972857,0.001,3215.2,3214.2,0.83557734]
[1768828973582,1.48074718,3215.1,3214.2,0.002]
[1768828973776,2.25095917,3215.1,3214.2,0.002]
[1768828974184,1.48074718,3215.0,3214.2,0.002]
[1768828974480,0.77021199,3215.1,3214.2,0.80724809]
[1768828974871,1.48074718,3215.0,3214.2,0.002]
[1768828976595,1.48074718,3214.9,3214.2,0.002]
[1768828978883,1.48074718,3214.9,3214.2,3.11319407]
[1768828979274,1.48174718,3215.2,3214.3,0.73722353]
[1768828979474,1.87122546,3215.2,3214.3,0.73722353]
[1768828979684,0.39047828,3215.2,3214.3,0.73722353]
[1768828979889,0.001,3215.2,3214.3,0.73722353]
[1768828980876,0.001,3215.2,3214.4,6.22200098]
[1768828981076,0.001,3215.2,3214.5,0.71109501]
[1768828981264,0.001,3215.2,3214.6,1.22309501]
[1768828981463,0.001,3215.2,3214.7,0.71109501]
[1768828982077,4.59045824,3215.8,3214.7,0.71109501]
[1768828982278,1.991093,3215.7,3214.7,0.71109501]
[1768828982666,1.835093,3215.7,3214.7,0.71109501]
[1768828983161,4.94492562,3215.7,3214.7,3.82171639]
[1768828984000,4.94492562,3215.7,3214.8,0.68556326]
[1768828985198,1.48074718,3215.6,3214.8,0.68556326]
[1768828985413,1.48074718,3215.5,3214.6,1.17261465]
[1768828985610,1.48074718,3215.5,3214.7,3.11065894]
[1768828985814,1.48074718,3215.5,3214.8,3.11060806]
[1768828986569,1.48074718,3215.5,3214.7,3.1106963]
[1768828986765,1.48074718,3215.5,3214.6,1.17261465]
[1768828986986,1.48074718,3215.5,3214.7,3.11067462]
[1768828987976,4.59050389,3215.7,3214.8,0.63623587]
[1768828988181,1.48074718,3215.7,3214.8,0.63623587]
[1768828989113,4.59049179,3215.7,3214.8,0.63623587]
[1768828989311,3.10974461,3215.7,3214.8,0.63623587]
[1768828989475,1.48074718,3215.6,3214.8,0.63623587]
[1768828989673,1.48074718,3215.6,3214.8,4.5577145]
[1768828990676,4.59059419,3215.6,3214.8,4.5577145]
[1768828991195,1.48074718,3215.6,3214.8,4.5577145]
[1768828991399,1.48074718,3215.6,3214.9,0.58913604]
[1768828991603,1.48074718,3215.8,3215.0,3.69955594]
[1768828991803,1.48074718,3216.0,3215.1,0.58913604]
[1768828992456,1.48074718,3216.0,3215.2,0.57769724]
[1768828992605,1.48074718,3216.0,3214.6,3.11073146]
[1768828992801,1.48074718,3216.0,3214.8,3.11053944]
[1768828992998,1.48074718,3215.8,3214.8,3.11053944]
[1768828993203,1.48074718,3215.8,3215.0,0.56638984]
[1768828993631,1.48074718,3215.8,3215.1,0.56638984]
[1768828995706,1.48074718,3215.8,3215.2,3.65438958]
[1768828996033,0.001,3216.1,3215.1,3.11031561]
[1768828996034,1.48074718,3216.0,3215.3,0.54416316]
[1768828996217,1.48074718,3216.0,3215.4,0.53324092]
[1768828996406,0.001,3216.1,3215.4,0.53324092]
[1768828996921,1.48174718,3216.1,3215.4,0.53324092]
[1768828997518,4.59112771,3216.1,3215.4,0.53324092]
[1768828997713,1.48074718,3216.0,3215.4,0.53324092]
[1768828998342,1.48074718,3216.0,3215.4,1.04524092]
[1768828999247,1.48074718,3216.0,3215.4,4.15525391]
[1768828999445,1.48074718,3216.0,3215.5,0.45206995]
[1768829000019,0.001,3216.1,3215.5,4.06314383]
[1768829000946,1.48074718,3216.0,3215.0,0.002]
[1768829001147,1.48074718,3215.9,3215.0,0.002]
[1768829001950,1.48074718,3215.9,3215.0,0.48248295]
[1768829002339,1.48074718,3215.9,3215.2,0.47029214]
[1768829002750,1.48074718,3215.9,3215.1,0.512]
[1768829003251,1.33185978,3215.8,3215.0,0.002]
[1768829003655,1.33185978,3215.8,3215.0,3.11241725]
[1768829004658,1.33185978,3215.8,3215.1,3.11030161]
[1768829005428,1.33185978,3215.8,3215.0,3.54310596]
[1768829005624,1.33185978,3215.8,3215.0,6.65352586]
[1768829005832,1.33185978,3215.8,3215.1,0.71655259]
[1768829006426,1.33185978,3216.0,3215.3,0.002]
[1768829007461,1.33185978,3215.9,3215.3,0.002]
[1768829008568,1.33185978,3215.9,3213.8,0.000802]
[1768829008750,1.33185978,3215.9,3214.3,3.62305956]
[1768829008954,1.33185978,3215.7,3214.0,3.11130817]
[1768829009134,1.33185978,3215.5,3214.1,0.512]
[1768829009771,1.33185978,3215.5,3213.8,0.000802]
[1768829009931,1.33185978,3215.5,3214.0,0.512]
[1768829010866,1.33185978,3215.5,3213.8,3.11234368]
[1768829010867,1.33185978,3215.3,3213.8,0.000802]
[1768829011071,1.33185978,3215.1,3213.8,0.000802]
[1768829011247,1.33185978,3214.9,3213.8,0.000802]
[1768829012191,0.76618598,3215.0,3213.4,0.002]
[1768829012192,1.33185978,3213.8,3213.4,0.002]
[1768829012879,0.00080168,3213.9,3213.4,0.002]
[1768829015183,3.11200284,3214.2,3213.4,0.35492375]
[1768829015477,1.33266178,3214.2,3213.5,0.00080176]
[1768829015681,1.33266178,3214.2,3213.5,0.67468917]
[1768829017171,1.33266178,3214.2,3213.5,0.00080176]
[1768829017172,1.33185978,3214.1,3213.5,0.00080176]
[1768829017368,1.33185978,3213.9,3213.5,0.00080176]
[1768829017936,1.33185978,3213.9,3213.2,0.00080176]
[1768829017937,1.33185978,3213.8,3213.2,0.00080176]
[1768829018337,0.00080176,3213.9,3213.8,0.002]
[1768829018647,1.33266154,3213.9,3213.5,0.002]
[1768829018850,1.33266154,3213.9,3213.2,0.00080176]
[1768829018851,1.33185978,3213.8,3213.2,0.00080176]
[1768829019565,1.33185978,3213.6,3213.2,0.00080176]
[1768829022540,1.33608419,3213.5,3213.2,0.00080176]
[1768829023191,1.33608419,3213.8,3213.2,0.00080176]
[1768829023342,3.86782808,3213.9,3213.2,0.28605093]
[1768829023343,0.00080176,3213.9,3213.2,0.28605093]
[1768829023755,0.00080176,3213.9,3213.3,6.50938011]
[1768829023975,0.00080176,3213.9,3213.4,0.65101819]
[1768829024194,0.00080176,3213.9,3213.4,0.92854417]
[1768829024353,0.00080176,3213.9,3213.5,0.27752598]
[1768829024676,0.000802,3214.2,3213.5,0.27832782]
[1768829026487,1.33688619,3214.2,3213.5,0.00080184]
[1768829026663,1.33688619,3214.2,3213.6,0.37637285]
[1768829028495,1.33688619,3214.2,3213.5,0.00080184]
[1768829028721,1.33608419,3214.1,3213.5,0.00080184]
[1768829029602,1.33608419,3214.1,3213.5,3.11264705]
[1768829030627,0.001,3213.8,3213.5,0.00080184]
[1768829030822,0.000802,3214.2,3213.5,0.00080184]
[1768829030995,0.000802,3214.2,3213.6,0.62247391]
[1768829032211,0.000802,3214.2,3213.5,0.00080184]
[1768829032212,1.33608419,3214.1,3213.5,0.00080184]
[1768829034629,1.20908248,3214.0,3213.5,0.00080184]
[1768829036396,4.3204723,3214.0,3213.5,0.00080184]
[1768829036705,1.20908248,3214.0,3213.2,0.00080176]
[1768829036903,1.20908248,3213.8,3213.2,0.67453447]
[1768829038648,1.20908248,3213.8,3213.2,0.00080176]
[1768829039020,1.20908248,3213.7,3213.2,0.00080176]
[1768829040261,0.00080184,3213.9,3213.2,0.1598092]
[1768829040748,0.00080184,3213.9,3213.3,3.11206547]
[1768829042354,0.00080184,3213.9,3213.2,3.27192452]
[1768829042554,1.20988432,3213.9,3213.3,0.68961664]
[1768829042741,1.20988432,3213.9,3213.5,0.002]
[1768829043147,0.001,3213.8,3213.5,0.002]
[1768829043315,1.21008248,3213.8,3213.5,0.002]
[1768829044682,0.001,3213.8,3213.5,0.002]
[1768829044831,0.001,3213.8,3213.5,0.62461307]
[1768829045283,0.001,3213.8,3213.5,0.002]
[1768829045438,1.20908248,3213.7,3213.2,0.00080176]
[1768829047333,1.20908248,3213.6,3213.2,0.00080176]
[1768829048969,1.20908248,3213.4,3213.2,0.00080176]
[1768829049147,3.11187179,3213.5,3213.2,0.00080176]
[1768829049148,1.64117791,3213.3,3213.2,0.00080176]
[1768829049350,1.20908248,3213.3,3213.2,0.00080176]
[1768829049673,1.20908248,3213.3,3212.8,0.00080024]
[1768829050960,1.20908248,3213.1,3212.8,0.00080024]
[1768829051644,3.6251065,3213.3,3212.8,0.00080024]
[1768829051645,0.513,3213.3,3212.8,0.00080024]
[1768829051844,4.83407895,3213.4,3212.8,0.00080024]
[1768829052157,3.11199647,3213.4,3212.8,1.1828702]
[1768829052358,4.32107895,3213.4,3212.8,0.00080024]
[1768829052531,1.20908248,3213.3,3212.8,0.00080024]
[1768829052933,1.20908248,3213.5,3212.8,0.00080024]
[1768829053139,1.20908248,3213.5,3212.8,1.1828702]
[1768829053366,3.11262077,3213.6,3212.8,1.1828702]
[1768829053577,1.20908248,3213.5,3212.8,1.1828702]
[1768829053979,3.11262077,3213.6,3212.8,1.1828702]
[1768829054441,0.001,3213.8,3213.4,1.18206996]
[1768829054652,1.20908248,3214.4,3213.6,1.18206996]
[1768829054857,0.513,3214.5,3213.6,1.18206996]
[1768829055080,3.11105347,3214.4,3213.6,1.18206996]
[1768829055378,6.22168681,3214.6,3213.6,1.18206996]
[1768829055567,6.73468681,3214.6,3213.6,1.18206996]
[1768829055763,1.20988448,3214.2,3213.5,0.00080192]
[1768829057381,0.000802,3214.2,3213.6,1.18206996]
[1768829059287,0.000802,3214.2,3213.5,0.00080192]
[1768829059588,1.20988448,3214.2,3213.5,0.00080192]
[1768829059979,0.000802,3214.2,3213.5,0.43029555]
[1768829060176,0.000802,3214.2,3213.6,1.18206996]
[1768829061815,3.10968516,3215.8,3213.7,1.18206996]
[1768829062124,0.0008012,3217.0,3214.4,1.18206996]
[1768829062125,1.20908248,3215.9,3214.4,1.18206996]
[1768829062263,1.20908248,3215.7,3214.5,1.21156339]
[1768829062465,1.20908248,3215.7,3214.6,1.18206996]
[1768829063994,1.20908248,3215.7,3214.7,3.11071017]
[1768829064194,1.20908248,3215.7,3214.8,1.12135094]
[1768829064393,0.74279879,3215.8,3214.8,1.12135094]
[1768829064596,0.001,3216.1,3214.8,1.12135094]
[1768829064796,0.31210299,3216.1,3215.0,1.12135094]
[1768829065096,0.31210299,3216.1,3215.2,1.12135094]
[1768829065603,0.001,3216.1,3215.2,1.12135094]
[1768829065971,0.001,3216.1,3215.4,1.12135094]
[1768829066470,0.001,3216.1,3214.9,1.12135094]
[1768829066471,1.15350638,3216.1,3214.9,1.12135094]
[1768829067005,1.15350638,3216.1,3215.0,4.23170966]
[1768829067382,1.15350638,3216.1,3215.0,1.12135094]
[1768829067899,1.15250638,3215.9,3215.0,1.12135094]
[1768829068198,0.73814118,3215.8,3215.0,1.12135094]
[1768829069961,3.84787196,3215.8,3215.0,1.12135094]
[1768829072101,1.15250638,3215.7,3214.9,0.002]
[1768829072874,1.15250638,3215.7,3214.9,1.12335094]
[1768829073077,1.15250638,3215.7,3214.9,4.23378496]
[1768829073307,1.65254421,3215.7,3214.9,1.12335094]
[1768829073604,1.65254421,3215.7,3214.9,4.23379266]
[1768829073802,1.65254421,3215.7,3214.9,1.12335094]
[1768829074197,4.76232422,3215.7,3214.9,1.12335094]
[1768829074513,4.76229704,3215.7,3214.9,1.12335094]
[1768829074912,4.76229704,3215.7,3215.0,1.12135094]
[1768829075208,0.55004382,3215.6,3215.0,1.12135094]
[1768829076103,1.15250638,3215.7,3215.0,1.12135094]
[1768829076404,4.26226898,3215.7,3215.0,1.12135094]
[1768829077211,0.001,3215.8,3215.1,1.12135094]
[1768829077504,0.001,3215.8,3215.3,1.12135094]
[1768829078412,0.001,3215.8,3215.4,1.12135094]
[1768829079908,0.001,3215.8,3215.4,1.59570473]
[1768829080095,0.001,3215.8,3215.5,1.132445]
[1768829080423,0.001,3216.1,3215.6,1.132445]
[1768829082808,0.001,3216.1,3215.7,1.132445]
[1768829083323,0.001,3216.1,3215.8,1.132445]
[1768829083979,0.001,3216.1,3216.0,1.132445]
[1768829084286,0.00080168,3216.3,3215.9,0.1644445]
[1768829084913,0.00080168,3216.3,3215.8,1.132445]
[1768829085126,1.0703178,3216.3,3215.7,0.512]
[1768829085440,1.0703178,3216.3,3215.4,1.132445]
[1768829085736,1.06951612,3216.0,3215.3,0.512]
[1768829086624,1.06951612,3216.2,3215.4,1.132445]
[1768829086825,4.17877549,3216.2,3215.4,1.60790079]
[1768829087128,1.06951612,3216.1,3215.3,0.512]
[1768829087308,1.06951612,3216.1,3215.3,4.75457445]
[1768829087628,1.06951612,3216.1,3215.3,1.644445]
[1768829089012,3.10945273,3216.0,3215.3,1.644445]
[1768829089216,4.17896885,3216.0,3215.3,1.644445]
[1768829089413,1.06951612,3216.0,3215.3,1.60791061]
[1768829089901,1.06951612,3216.0,3215.3,4.71803575]
[1768829090230,1.06951612,3216.0,3215.3,1.60791061]
[1768829091136,7.8006432,3216.3,3215.4,1.132445]
[1768829091335,1.06951612,3216.2,3215.4,1.132445]
[1768829091523,1.06951612,3216.2,3215.5,1.132445]
[1768829091719,6.73112708,3216.3,3215.4,1.132445]
[1768829091720,0.001,3215.8,3215.4,1.132445]
[1768829093837,0.001,3215.8,3215.4,4.24245791]
[1768829094039,1.06951612,3216.1,3215.4,4.24245791]
[1768829094239,1.06951612,3216.1,3215.4,4.97772396]
[1768829094531,3.62201213,3216.3,3215.5,1.10499687]
[1768829094731,4.71611793,3216.3,3215.5,1.10499687]
[1768829094937,1.0941058,3216.2,3215.5,1.10499687]
[1768829095743,1.0941058,3216.1,3215.1,1.61699687]
[1768829095907,1.0941058,3216.1,3215.2,1.57773304]
[1768829096406,1.0941058,3216.1,3215.3,1.61699687]
[1768829096831,1.0941058,3216.1,3215.2,0.47273617]
[1768829097137,1.0941058,3216.1,3215.3,0.512]
[1768829097726,1.0941058,3215.9,3215.3,0.512]
[1768829099937,1.0941058,3215.9,3215.1,4.21530013]
[1768829100238,1.0941058,3215.8,3215.2,0.512]
[1768829100833,3.10943648,3216.1,3215.3,1.10499687]
[1768829100834,1.0941058,3216.1,3215.3,1.10499687]
[1768829101143,3.10928648,3216.2,3215.5,1.10499687]
[1768829101352,4.20339228,3216.2,3215.5,1.10499687]
[1768829101936,1.0941058,3215.9,3215.4,0.16169969]
[1768829102244,6.21880932,3216.1,3215.4,1.10499687]
[1768829102463,1.0941058,3216.0,3215.2,1.61699687]
[1768829103247,1.0941058,3216.0,3215.5,0.002]
[1768829104630,4.20365522,3215.9,3215.5,0.002]
[1768829106047,1.0941058,3216.1,3215.5,1.10699687]
[1768829106251,3.10925937,3216.2,3215.5,1.10699687]
[1768829106626,4.20410388,3216.3,3215.5,1.10699687]
[1768829106826,1.0941058,3216.2,3215.5,1.10699687]
[1768829108768,3.10927264,3216.2,3215.5,1.10699687]
[1768829109649,4.20409679,3216.3,3215.6,1.10499687]
[1768829110445,3.10999099,3216.3,3215.6,1.10499687]
[1768829110643,0.00080168,3216.3,3215.6,1.10499687]
[1768829110842,0.00080168,3216.3,3215.6,4.21482448]
[1768829111058,0.00080168,3216.3,3215.8,1.10499687]
[1768829111275,0.00080168,3216.3,3215.8,1.26669656]
[1768829112670,0.00080064,3216.6,3215.9,1.10499687]
[1768829112854,0.00080064,3216.6,3215.9,1.10579863]
[1768829113171,0.0008012,3217.0,3216.3,1.10499687]
[1768829113573,0.0008012,3217.0,3216.5,1.10499687]
[1768829116071,3.10875761,3217.6,3216.9,0.00080128]
[1768829116364,1.0941058,3217.5,3216.9,0.00080128]
[1768829116588,12.02260019,3217.6,3216.9,1.10579815]
[1768829116589,0.00080128,3217.6,3216.9,1.10579815]
[1768829116768,0.00080128,3217.6,3216.9,4.21433196]
[1768829116953,0.00080128,3217.6,3217.1,1.10499687]
[1768829118341,0.00080088,3217.9,3217.2,1.10579823]
[1768829118866,0.00080088,3217.9,3217.4,1.10499687]
[1768829119077,0.00080088,3217.9,3217.2,1.10579823]
[1768829119439,0.00080088,3217.9,3217.3,1.10499687]
[1768829119639,0.00080088,3217.9,3217.4,1.10499687]
[1768829121062,0.00080088,3217.9,3217.4,4.21306957]
[1768829121261,0.00080088,3217.9,3217.4,1.10499687]
[1768829122662,0.00080088,3217.9,3217.4,4.21308896]
[1768829122882,0.00080088,3217.9,3217.4,1.10499687]
[1768829123262,0.00080088,3217.9,3217.4,1.5263905]
[1768829123950,0.00080088,3217.9,3217.5,1.0182228]
[1768829124144,0.00080088,3217.9,3217.4,0.42139363]
[1768829124353,1.59513497,3217.9,3217.2,0.00080136]
[1768829124650,1.59513497,3217.9,3216.7,3.10869581]
[1768829124651,1.08233409,3217.2,3216.6,0.00080128]
[1768829124849,1.08233409,3217.1,3216.6,0.00080128]
[1768829126749,1.59513537,3217.3,3216.6,1.01902408]
[1768829126956,1.08313537,3217.3,3216.6,1.01902408]
[1768829127184,4.70333429,3217.3,3216.6,1.01902408]
[1768829127347,4.70334626,3217.3,3216.6,1.01902408]
[1768829127552,1.08233409,3217.2,3216.9,0.002]
[1768829127752,1.08233409,3217.2,3216.6,0.00080128]
[1768829128253,1.08313537,3217.0,3216.5,0.002]
[1768829128480,1.08313537,3217.0,3215.9,0.00080176]
[1768829128481,0.00080072,3216.6,3215.9,0.00080176]
[1768829128815,1.08233409,3216.3,3215.9,0.00080176]
[1768829128955,0.512,3216.4,3215.9,0.00080176]
[1768829130372,4.19134642,3216.5,3215.9,0.00080176]
[1768829130577,5.43344246,3216.5,3215.9,0.00080176]
[1768829130884,2.32443013,3216.5,3215.9,0.00080176]
[1768829131486,1.08233409,3216.4,3215.9,0.00080176]
[1768829133884,3.1091627,3216.3,3215.9,0.00080176]
[1768829135358,4.19143577,3216.4,3215.9,0.00080176]
[1768829135789,4.19143577,3216.4,3215.5,3.11192953]
[1768829135790,1.08233409,3216.3,3215.5,0.002]
[1768829135980,1.08233409,3216.3,3215.5,1.0202228]
[1768829135981,0.512,3216.2,3215.5,1.0202228]
[1768829136394,0.00080176,3216.3,3215.7,1.0182228]
[1768829136690,0.00080176,3216.3,3215.9,1.0182228]
[1768829140997,0.001,3216.0,3215.9,1.0182228]
[1768829141198,0.001,3216.0,3215.7,1.04127504]
[1768829147506,0.001,3216.0,3215.5,0.513]
[1768829147809,0.001,3216.0,3215.6,1.40357695]
[1768829149500,0.001,3216.0,3215.6,1.04127504]
[1768829150912,1.08002795,3216.3,3215.7,1.04127504]
[1768829151673,0.00080176,3216.3,3215.7,1.04127504]
[1768829152510,0.00080176,3216.3,3215.5,1.55427504]
[1768829152511,1.07922619,3216.2,3215.5,1.55427504]
[1768829152699,1.07922619,3216.2,3215.6,1.04127504]
[1768829153091,0.00080176,3216.3,3215.6,1.04127504]
[1768829153092,0.001,3216.0,3215.7,0.98406951]
[1768829155202,0.001,3216.0,3215.8,0.98406951]
[1768829155381,0.00080176,3216.3,3215.8,0.98406951]
[1768829156014,0.52406258,3216.5,3215.8,3.10964535]
[1768829156178,0.52406258,3216.5,3215.9,0.98487135]
[1768829156379,3.63303223,3216.5,3216.0,0.98406951]
[1768829156706,0.52406258,3216.5,3216.0,0.98406951]
[1768829157818,3.10972265,3216.6,3216.0,0.98406951]
[1768829158114,1.02326082,3216.5,3216.0,0.98406951]
[1768829158414,1.02406154,3216.6,3216.0,0.98406951]
[1768829158621,1.02406154,3216.6,3215.3,0.002]
[1768829158622,1.02326082,3216.5,3215.3,0.002]
[1768829158784,6.21865094,3216.6,3214.9,0.002]
[1768829158785,5.80587226,3215.6,3214.9,0.002]
[1768829158978,0.58058723,3215.5,3214.9,0.002]
[1768829160092,6.22006592,3215.4,3214.9,0.002]
[1768829160290,3.11003296,3215.4,3214.9,0.002]
[1768829160695,6.22006592,3215.4,3214.9,0.002]
[1768829163525,3.11003296,3215.4,3214.9,0.002]
[1768829163715,4.42187805,3215.4,3214.9,0.002]
[1768829164242,0.512,3215.3,3214.9,0.002]